fUSD/lending_fUSD_20250620
["ID","MTS","AMOUNT","RATE_DAILY","PERIOD"]
[366674725,1750407062434,-490.0,0.00025972,4]
[366674726,1750407062445,-251.71658684,0.00025972,2]
[366674727,1750407062455,-490.62961686,0.00025972,4]
[366674728,1750407062466,-490.0,0.00025972,4]
[366674729,1750407062477,-490.0,0.00025972,4]
[366674730,1750407062487,-490.0,0.00025972,4]
[366674731,1750407062498,-490.0,0.00025972,4]
[366674732,1750407062509,-490.0,0.00025972,4]
[366674733,1750407062519,-490.0,0.00025972,4]
[366674734,1750407062529,-490.0,0.00025972,4]
[366674735,1750407062540,-490.0,0.00025972,4]
[366674736,1750407062551,-490.0,0.00025972,4]
[366674737,1750407062562,-490.0,0.00025972,4]
[366674738,1750407062574,-490.0,0.00025972,4]
[366674739,1750407062586,-490.0,0.00025972,4]
[366674740,1750407062596,-490.0,0.00025972,4]
[366674741,1750407062607,-500.0,0.00025972,4]
[366674742,1750407062621,-427.87174413,0.00025972,4]
[366674743,1750407062632,-490.0,0.00025972,4]
[366674744,1750407062643,-504.66244297,0.00025972,4]
[366674745,1750407062654,-490.0,0.00025972,4]
[366674746,1750407062666,-490.0,0.00025972,4]
[366674747,1750407062677,-430.27738702,0.00025972,4]
[366674748,1750407062688,-490.0,0.00025972,4]
[366674749,1750407062698,-535.3235308,0.00025972,4]
[366674750,1750407062708,-490.0,0.00025972,4]
[366674751,1750407062719,-490.0,0.00025972,4]
[366674752,1750407062730,-363.2598552,0.00025972,4]
[366674753,1750407062741,-490.0,0.00025972,4]
[366674754,1750407062751,-490.0,0.00025972,4]
[366674755,1750407062768,-490.0,0.00025972,4]
[366674756,1750407062780,-490.0,0.00025972,4]
[366674757,1750407062791,-490.0,0.00025972,4]
[366674758,1750407062802,-490.0,0.00025972,4]
[366674759,1750407062813,-490.0,0.00025972,4]
[366674760,1750407062828,-490.0,0.00025972,4]
[366674761,1750407062839,-490.0,0.00025972,4]
[366674762,1750407062850,-490.0,0.00025972,4]
[366674763,1750407062862,-490.0,0.00025972,4]
[366674764,1750407062873,-490.0,0.00025972,4]
[366674765,1750407062884,-490.0,0.00025972,4]
[366674766,1750407062895,-490.0,0.00025972,4]
[366674767,1750407062906,-490.0,0.00025972,4]
[366674768,1750407062917,-490.0,0.00025972,4]
[366674769,1750407062928,-490.0,0.00025972,4]
[366674770,1750407062939,-490.0,0.00025972,4]
[366674771,1750407062950,-490.0,0.00025972,4]
[366674772,1750407062961,-490.0,0.00025972,4]
[366674773,1750407062972,-490.0,0.00025972,4]
[366674774,1750407062983,-490.0,0.00025972,4]
[366674775,1750407062996,-282.72912386,0.00025972,4]
[366674776,1750407063007,-490.0,0.00025972,4]
[366674777,1750407063019,-490.0,0.00025972,4]
[366674778,1750407063031,-490.0,0.00025972,4]
[366674779,1750407063043,-490.0,0.00025972,4]
[366674780,1750407063054,-490.0,0.00025972,4]
[366674781,1750407063066,-490.0,0.00025972,4]
[366674782,1750407063080,-490.0,0.00025972,4]
[366674783,1750407063091,-490.0,0.00025972,4]
[366674784,1750407063103,-490.0,0.00025972,4]
[366674785,1750407063115,-490.0,0.00025972,4]
[366674786,1750407063127,-490.0,0.00025972,4]
[366674787,1750407063138,-490.0,0.00025972,4]
[366674788,1750407063149,-490.0,0.00025972,4]
[366674789,1750407063160,-490.0,0.00025972,4]
[366674790,1750407063172,-490.0,0.00025972,4]
[366674791,1750407063182,-490.98754556,0.00025972,4]
[366674792,1750407063194,-490.0,0.00025972,4]
[366674793,1750407063205,-490.0,0.00025972,4]
[366674794,1750407063217,-490.0,0.00025972,4]
[366674795,1750407063228,-490.0,0.00025972,4]
[366674796,1750407063239,-490.0,0.00025972,4]
[366674797,1750407063250,-490.0,0.00025972,4]
[366674798,1750407063261,-490.0,0.00025972,4]
[366674799,1750407063273,-490.0,0.00025972,4]
[366674800,1750407063284,-164.01960762,0.00025972,4]
[366674801,1750407063295,-490.0,0.00025972,4]
[366674802,1750407063306,-490.0,0.00025972,4]
[366674803,1750407063319,-490.0,0.00025972,4]
[366674804,1750407063330,-490.0,0.00025972,4]
[366674805,1750407063341,-490.0,0.00025972,4]
[366674806,1750407063352,-490.0,0.00025972,4]
[366674807,1750407063363,-490.0,0.00025972,4]
[366674808,1750407063374,-490.0,0.00025972,4]
[366674809,1750407063385,-490.0,0.00025972,4]
[366674810,1750407063395,-490.0,0.00025972,4]
[366674811,1750407063406,-490.0,0.00025972,4]
[366674812,1750407063416,-490.0,0.00025972,4]
[366674813,1750407063426,-490.0,0.00025972,4]
[366674814,1750407063437,-1756.33,0.00025972,4]
[366674815,1750407063447,-1254.15,0.00025972,4]
[366674816,1750407063457,-1291.33,0.00025972,4]
[366674817,1750407063467,-495.23,0.00025972,4]
[366674818,1750407063478,-1174.93,0.00025972,4]
[366674819,1750407063489,-1657.0,0.00025972,4]
[366674820,1750407063499,-824.58,0.00025972,4]
[366674821,1750407063510,-1393.3,0.00025972,4]
[366674822,1750407063520,-490.0,0.00025972,4]
[366674823,1750407063531,-867.82,0.00025972,4]
[366674824,1750407063541,-490.0,0.00025972,4]
[366674825,1750407063552,-1593.97,0.00025972,4]
[366674826,1750407063563,-960.1,0.00025972,4]
[366674827,1750407063575,-1753.46,0.00025972,4]
[366674828,1750407063586,-1178.91,0.00025972,4]
[366674829,1750407063598,-1381.3,0.00025972,4]
[366674830,1750407063609,-2064.22,0.00025972,4]
[366674831,1750407063624,-1408.83,0.00025972,4]
[366674832,1750407063635,-1035.99,0.00025972,4]
[366674833,1750407063647,-490.0,0.00025972,4]
[366674834,1750407063660,-731.57,0.00025972,4]
[366674835,1750407063672,-2237.91,0.00025972,4]
[366674836,1750407063683,-1210.59,0.00025972,4]
[366674837,1750407063695,-2120.27,0.00025972,4]
[366674838,1750407063706,-490.0,0.00025972,4]
[366674839,1750407063718,-644.29,0.00025972,4]
[366674840,1750407063729,-490.0,0.00025972,4]
[366674841,1750407063739,-490.0,0.00025972,4]
[366674842,1750407063751,-679.44,0.00025972,4]
[366674843,1750407063762,-1493.19,0.00025972,4]
[366674844,1750407063773,-1105.85,0.00025972,4]
[366674845,1750407063784,-1693.5,0.00025972,4]
[366674846,1750407063795,-501.49,0.00025972,4]
[366674847,1750407063806,-537.71,0.00025972,4]
[366674848,1750407063817,-645.39,0.00025972,4]
[366674849,1750407063828,-490.0,0.00025972,4]
[366674850,1750407063839,-513.8,0.00025972,4]
[366674851,1750407063849,-881.61,0.00025972,4]
[366674852,1750407063860,-827.29,0.00025972,4]
[366674853,1750407063871,-1085.53,0.00025972,4]
[366674854,1750407063882,-500.0,0.00025972,4]
[366674855,1750407063893,-986.83,0.00025972,4]
[366674856,1750407063904,-490.0,0.00025972,4]
[366674857,1750407063915,-300.0,0.00025972,2]
[366674858,1750407063925,-490.0,0.00025972,4]
[366674859,1750407063935,-490.0,0.00025972,4]
[366674860,1750407063946,-490.0,0.00025972,4]
[366674861,1750407063959,-502.6492585,0.00025973,2]
[366674862,1750407063970,-500.85009793,0.00025973,2]
[366674863,1750407063981,-622.65233337,0.00025973,2]
[366674864,1750407063992,-500.72490521,0.00025973,2]
[366674865,1750407064003,-501.57381538,0.00025973,2]
[366674866,1750407064014,-500.96686372,0.00025973,2]
[366674867,1750407064025,-6619.0,0.00025973,2]
[366674868,1750407064037,-653.16,0.00025977,4]
[366674869,1750407064047,-706.2,0.00025977,4]
[366674870,1750407064059,-2088.27,0.00025977,4]
[366674871,1750407064071,-500.0,0.00025977,4]
[366674872,1750407064083,-1008.25,0.00025977,4]
[366674873,1750407064095,-500.0,0.00025977,2]
[366674874,1750407064106,-151.0,0.00025978,7]
[366674875,1750407064117,-729.180976,0.00025978,7]
[366674876,1750407064128,-729.180976,0.00025978,7]
[366674877,1750407064139,-151.0,0.00025978,7]
[366674878,1750407064151,-151.0,0.00025978,7]
[366674879,1750407064163,-304.822421,0.00025978,7]
[366674880,1750407064174,-304.822421,0.00025978,7]
[366674881,1750407064184,-720.548446,0.00025978,7]
[366674882,1750407064196,-720.548446,0.00025978,7]
[366674883,1750407064206,-245.722922,0.00025978,7]
[366674884,1750407064217,-245.722922,0.00025978,7]
[366674885,1750407064229,-754.04,0.00025978,4]
[366674886,1750407064239,-789.07,0.00025978,4]
[366674887,1750407064250,-280.54126325,0.00025979,2]
[366674888,1750407064261,-706.2,0.00025979,4]
[366674889,1750407064272,-2088.27,0.00025979,4]
[366674890,1750407064282,-1008.25,0.00025979,4]
[366674891,1750407064293,-500.0,0.00025979,4]
[366674892,1750407064304,-500.0,0.00025979,4]
[366674893,1750407064314,-151.0,0.0002598,7]
[366674894,1750407064327,-151.0,0.0002598,7]
[366674895,1750407064343,-151.0,0.0002598,7]
[366674896,1750407064354,-304.822421,0.0002598,7]
[366674897,1750407064365,-304.822421,0.0002598,7]
[366674898,1750407064376,-720.548446,0.0002598,7]
[366674899,1750407064387,-720.548446,0.0002598,7]
[366674900,1750407064398,-200.0,0.0002598,2]
[366674901,1750407064409,-200.0,0.0002598,2]
[366674902,1750407064420,-200.0,0.0002598,2]
[366674903,1750407064430,-200.0,0.0002598,2]
[366674904,1750407064441,-200.0,0.0002598,2]
[366674905,1750407064451,-200.0,0.0002598,2]
[366674906,1750407064461,-200.0,0.0002598,2]
[366674907,1750407064472,-200.0,0.0002598,2]
[366674908,1750407064482,-200.0,0.0002598,2]
[366674909,1750407064493,-200.0,0.0002598,2]
[366674910,1750407064503,-200.0,0.0002598,2]
[366674911,1750407064513,-200.0,0.0002598,2]
[366674912,1750407064524,-200.0,0.0002598,2]
[366674913,1750407064535,-200.0,0.0002598,2]
[366674914,1750407064545,-200.0,0.0002598,2]
[366674915,1750407064556,-200.0,0.0002598,2]
[366674916,1750407064567,-200.0,0.0002598,2]
[366674917,1750407064580,-200.0,0.0002598,2]
[366674918,1750407064591,-200.0,0.0002598,2]
[366674919,1750407064602,-200.0,0.0002598,2]
[366674920,1750407064614,-200.0,0.0002598,2]
[366674921,1750407064624,-200.0,0.0002598,2]
[366674922,1750407064635,-200.0,0.0002598,2]
[366674923,1750407064646,-200.0,0.0002598,2]
[366674924,1750407064657,-200.0,0.0002598,2]
[366674925,1750407064667,-200.0,0.0002598,2]
[366674926,1750407064678,-200.0,0.0002598,2]
[366674927,1750407064688,-200.0,0.0002598,2]
[366674928,1750407064699,-200.0,0.0002598,2]
[366674929,1750407064710,-200.0,0.0002598,2]
[366674930,1750407064720,-200.0,0.0002598,2]
[366674931,1750407064731,-200.0,0.0002598,2]
[366674932,1750407064742,-200.0,0.0002598,2]
[366674933,1750407064752,-200.0,0.0002598,2]
[366674934,1750407064763,-200.0,0.0002598,2]
[366674935,1750407064774,-200.0,0.0002598,2]
[366674936,1750407064785,-200.0,0.0002598,2]
[366674937,1750407064796,-200.0,0.0002598,2]
[366674938,1750407064807,-183.585951,0.0002598,2]
[366674939,1750407064818,-245.722922,0.0002598,7]
[366674940,1750407064828,-245.722922,0.0002598,7]
[366674941,1750407064838,-706.2,0.0002598,4]
[366674942,1750407064848,-2088.27,0.0002598,4]
[366674943,1750407064860,-413.2170539,0.0002598,2]
[366674944,1750407064871,-5977.4821377,0.0002598,2]
[366674945,1750407064881,-1008.25,0.0002598,4]
[366674946,1750407064892,-834.11677829,0.0002598,7]
[366674947,1750407064902,-11973.8172597,0.0002598,2]
[366674948,1750407064913,-500.0,0.00025981,4]
[366674950,1750407065170,-360.365447,0.00025982,7]
[366674951,1750407065183,-360.365447,0.00025982,7]
[366674952,1750407065194,-151.0,0.00025982,7]
[366674953,1750407065206,-221.57305,0.00025982,7]
[366674954,1750407065216,-233.028456,0.00025982,7]
[366674955,1750407065227,-151.134797,0.00025982,7]
[366674956,1750407065239,-2558.843691,0.00025982,7]
[366674957,1750407065249,-2558.843691,0.00025982,7]
[366674958,1750407065260,-209.03364,0.00025982,7]
[366674959,1750407065272,-209.03364,0.00025982,7]
[366674960,1750407065282,-157.717055,0.00025982,7]
[366674961,1750407065292,-157.717055,0.00025982,7]
[366674962,1750407065302,-604.506078,0.00025982,7]
[366674963,1750407065313,-604.506078,0.00025982,7]
[366674964,1750407065323,-666.0,0.00025987,2]
[366674965,1750407065334,-300.0,0.00025987,10]
[366674966,1750407065345,-500.0,0.00025987,4]
[366674967,1750407065355,-2095.29027349,0.00025987,2]
[366674968,1750407065366,-653.16,0.00025987,4]
[366674969,1750407065377,-754.04,0.00025987,4]
[366674970,1750407065387,-706.2,0.00025987,4]
[366674971,1750407065397,-2088.27,0.00025987,4]
[366674972,1750407065408,-1582.19,0.00025987,4]
[366674973,1750407065418,-1582.19,0.00025987,4]
[366674974,1750407065428,-789.07,0.00025987,4]
[366674975,1750407065438,-1008.25,0.00025987,4]
[366674976,1750407065448,-500.0,0.00025987,4]
[366674977,1750407065458,-3949.3,0.00025987,4]
[366674978,1750407065469,-3949.3,0.00025987,4]
[366674979,1750407065479,-500.0,0.00025987,2]
[366674980,1750407065489,-666.0,0.00025988,2]
[366674981,1750407065499,-672.91796395,0.00025988,2]
[366674982,1750407065509,-300.0,0.00025988,10]
[366674983,1750407065519,-300.0,0.00025988,10]
[366674984,1750407065530,-151.0,0.00025988,7]
[366674985,1750407065541,-160.107388,0.00025988,7]
[366674986,1750407065551,-160.107388,0.00025988,7]
[366674987,1750407065563,-278.413062,0.00025988,7]
[366674988,1750407065573,-278.413062,0.00025988,7]
[366674989,1750407065583,-151.0,0.00025988,7]
[366674990,1750407065593,-152.629673,0.00025988,7]
[366674991,1750407065604,-186.5679,0.00025988,7]
[366674992,1750407065616,-186.5679,0.00025988,7]
[366674993,1750407065628,-151.0,0.00025988,7]
[366674994,1750407065637,-151.0,0.00025988,7]
[366674995,1750407065648,-270.547979,0.00025988,7]
[366674996,1750407065659,-270.547979,0.00025988,7]
[366674997,1750407065669,-270.547979,0.00025988,7]
[366674998,1750407065679,-270.547979,0.00025988,7]
[366674999,1750407065691,-500.0,0.00025988,4]
[366675000,1750407065702,-500.0,0.00025988,4]
[366675001,1750407065712,-500.0,0.00025988,4]
[366675002,1750407065722,-500.0,0.00025988,4]
[366675003,1750407065732,-500.0,0.00025988,4]
[366675004,1750407065743,-518.57503355,0.00025988,4]
[366675005,1750407065752,-151.347111,0.00025988,7]
[366675006,1750407065763,-729.180976,0.00025988,7]
[366675007,1750407065773,-729.180976,0.00025988,7]
[366675008,1750407065783,-151.0,0.00025988,7]
[366675009,1750407065792,-151.0,0.00025988,7]
[366675010,1750407065803,-151.0,0.00025988,7]
[366675011,1750407065813,-151.0,0.00025988,7]
[366675012,1750407065823,-151.0,0.00025988,7]
[366675013,1750407065832,-151.0,0.00025988,7]
[366675014,1750407065842,-151.0,0.00025988,7]
[366675015,1750407065852,-151.0,0.00025988,7]
[366675016,1750407065862,-304.822421,0.00025988,7]
[366675017,1750407065873,-304.822421,0.00025988,7]
[366675018,1750407065883,-304.822421,0.00025988,7]
[366675019,1750407065894,-304.822421,0.00025988,7]
[366675020,1750407065904,-720.548446,0.00025988,7]
[366675021,1750407065914,-720.548446,0.00025988,7]
[366675022,1750407065924,-720.548446,0.00025988,7]
[366675023,1750407065934,-720.548446,0.00025988,7]
[366675024,1750407065944,-490.0,0.00025988,4]
[366675025,1750407065954,-490.0,0.00025988,4]
[366675026,1750407065965,-490.0,0.00025988,4]
[366675027,1750407065975,-490.0,0.00025988,4]
[366675028,1750407065985,-510.86,0.00025988,4]
[366675029,1750407065997,-659.9,0.00025988,4]
[366675030,1750407066008,-500.0,0.00025988,4]
[366675031,1750407066019,-490.0,0.00025988,4]
[366675032,1750407066034,-490.0,0.00025988,4]
[366675033,1750407066055,-618.39,0.00025988,4]
[366675034,1750407066076,-490.0,0.00025988,4]
[366675035,1750407066095,-490.0,0.00025988,4]
[366675036,1750407066107,-490.0,0.00025988,4]
[366675037,1750407066118,-490.0,0.00025988,4]
[366675038,1750407066128,-490.0,0.00025988,4]
[366675039,1750407066139,-490.0,0.00025988,4]
[366675040,1750407066149,-490.0,0.00025988,4]
[366675041,1750407066159,-490.0,0.00025988,4]
[366675042,1750407066170,-490.0,0.00025988,4]
[366675043,1750407066180,-490.0,0.00025988,4]
[366675044,1750407066190,-490.0,0.00025988,4]
[366675045,1750407066200,-490.0,0.00025988,4]
[366675046,1750407066211,-490.0,0.00025988,4]
[366675047,1750407066221,-580.17,0.00025988,4]
[366675048,1750407066232,-491.79,0.00025988,4]
[366675049,1750407066242,-490.0,0.00025988,4]
[366675050,1750407066252,-490.0,0.00025988,4]
[366675051,1750407066263,-512.99,0.00025988,4]
[366675052,1750407066274,-245.722922,0.00025988,7]
[366675053,1750407066286,-490.0,0.00025988,4]
[366675054,1750407066296,-490.0,0.00025988,4]
[366675055,1750407066306,-245.722922,0.00025988,7]
[366675056,1750407066315,-490.0,0.00025988,4]
[366675057,1750407066326,-1799.72,0.00025988,4]
[366675058,1750407066336,-562.17,0.00025988,4]
[366675059,1750407066347,-490.0,0.00025988,4]
[366675060,1750407066357,-599.03,0.00025988,4]
[366675061,1750407066366,-490.0,0.00025988,4]
[366675062,1750407066377,-530.88,0.00025988,4]
[366675063,1750407066387,-490.0,0.00025988,4]
[366675064,1750407066397,-490.0,0.00025988,4]
[366675065,1750407066407,-586.56,0.00025988,4]
[366675066,1750407066417,-490.0,0.00025988,4]
[366675067,1750407066427,-490.0,0.00025988,4]
[366675068,1750407066437,-490.0,0.00025988,4]
[366675069,1750407066447,-490.0,0.00025988,4]
[366675070,1750407066457,-608.23453738,0.00025988,4]
[366675071,1750407066466,-490.0,0.00025988,4]
[366675072,1750407066477,-490.0,0.00025988,4]
[366675073,1750407066487,-490.0,0.00025988,4]
[366675074,1750407066498,-490.0,0.00025988,4]
[366675075,1750407066508,-490.0,0.00025988,4]
[366675076,1750407066518,-490.0,0.00025988,4]
[366675077,1750407066528,-490.0,0.00025988,4]
[366675078,1750407066539,-490.0,0.00025988,4]
[366675079,1750407066549,-490.0,0.00025988,4]
[366675080,1750407066559,-490.0,0.00025988,4]
[366675081,1750407066570,-490.0,0.00025988,4]
[366675082,1750407066580,-490.0,0.00025988,4]
[366675083,1750407066589,-713.08,0.00025988,4]
[366675084,1750407066599,-653.16,0.00025988,4]
[366675085,1750407066611,-653.16,0.00025988,4]
[366675086,1750407066627,-653.16,0.00025988,4]
[366675087,1750407066637,-653.16,0.00025988,4]
[366675088,1750407066648,-653.16,0.00025988,4]
[366675089,1750407066659,-653.16,0.00025988,4]
[366675090,1750407066670,-653.16,0.00025988,4]
[366675091,1750407066680,-653.16,0.00025988,4]
[366675092,1750407066694,-653.16,0.00025988,4]
[366675093,1750407066706,-653.16,0.00025988,4]
[366675094,1750407066716,-490.0,0.00025988,4]
[366675095,1750407066726,-653.16,0.00025988,4]
[366675096,1750407066737,-653.16,0.00025988,4]
[366675097,1750407066750,-653.16,0.00025988,4]
[366675098,1750407066760,-653.16,0.00025988,4]
[366675099,1750407066770,-653.16,0.00025988,4]
[366675100,1750407066781,-653.18932126,0.00025988,4]
[366675101,1750407066792,-664.29,0.00025988,4]
[366675102,1750407066802,-490.0,0.00025988,4]
[366675103,1750407066812,-490.0,0.00025988,4]
[366675104,1750407066823,-490.0,0.00025988,4]
[366675105,1750407066834,-490.0,0.00025988,4]
[366675106,1750407066844,-754.04,0.00025988,4]
[366675107,1750407066855,-754.04,0.00025988,4]
[366675108,1750407066865,-754.04,0.00025988,4]
[366675109,1750407066875,-754.04,0.00025988,4]
[366675110,1750407066886,-754.04,0.00025988,4]
[366675111,1750407066896,-754.04,0.00025988,4]
[366675112,1750407066906,-754.04,0.00025988,4]
[366675113,1750407066917,-754.04,0.00025988,4]
[366675114,1750407066927,-754.04,0.00025988,4]
[366675115,1750407066937,-754.04,0.00025988,4]
[366675116,1750407066947,-754.04,0.00025988,4]
[366675117,1750407066958,-754.04,0.00025988,4]
[366675118,1750407066968,-754.04,0.00025988,4]
[366675119,1750407066979,-754.10257684,0.00025988,4]
[366675120,1750407066989,-490.0,0.00025988,4]
[366675121,1750407066999,-490.0,0.00025988,4]
[366675122,1750407067010,-490.0,0.00025988,4]
[366675123,1750407067020,-490.0,0.00025988,4]
[366675124,1750407067030,-712.81,0.00025988,4]
[366675125,1750407067040,-490.0,0.00025988,4]
[366675126,1750407067050,-490.0,0.00025988,4]
[366675127,1750407067060,-490.0,0.00025988,4]
[366675128,1750407067071,-656.45,0.00025988,4]
[366675129,1750407067082,-490.0,0.00025988,4]
[366675130,1750407067092,-322.11839494,0.00025988,4]
[366675131,1750407067102,-490.0,0.00025988,4]
[366675132,1750407067112,-531.18,0.00025988,4]
[366675133,1750407067122,-490.0,0.00025988,4]
[366675134,1750407067132,-584.8,0.00025988,4]
[366675135,1750407067141,-490.0,0.00025988,4]
[366675136,1750407067151,-490.0,0.00025988,4]
[366675137,1750407067161,-490.0,0.00025988,4]
[366675138,1750407067171,-490.0,0.00025988,4]
[366675139,1750407067181,-490.0,0.00025988,4]
[366675140,1750407067192,-683.77,0.00025988,4]
[366675141,1750407067202,-490.0,0.00025988,4]
[366675142,1750407067213,-490.0,0.00025988,4]
[366675143,1750407067224,-1496.03,0.00025988,4]
[366675144,1750407067235,-490.0,0.00025988,4]
[366675145,1750407067245,-490.0,0.00025988,4]
[366675146,1750407067255,-1418.28,0.00025988,4]
[366675147,1750407067265,-490.0,0.00025988,4]
[366675148,1750407067276,-5000.0,0.00025988,4]
[366675149,1750407067287,-490.23,0.00025988,4]
[366675150,1750407067298,-490.0,0.00025988,4]
[366675151,1750407067308,-647.89,0.00025988,4]
[366675152,1750407067319,-490.0,0.00025988,4]
[366675153,1750407067333,-490.0,0.00025988,4]
[366675154,1750407067344,-490.0,0.00025988,4]
[366675155,1750407067354,-490.0,0.00025988,4]
[366675156,1750407067365,-490.0,0.00025988,4]
[366675157,1750407067375,-490.0,0.00025988,4]
[366675158,1750407067385,-706.2,0.00025988,4]
[366675159,1750407067395,-706.2,0.00025988,4]
[366675160,1750407067406,-706.2,0.00025988,4]
[366675161,1750407067416,-706.2,0.00025988,4]
[366675162,1750407067427,-706.2,0.00025988,4]
[366675163,1750407067437,-706.2,0.00025988,4]
[366675164,1750407067447,-706.2,0.00025988,4]
[366675165,1750407067458,-706.2,0.00025988,4]
[366675166,1750407067468,-706.2,0.00025988,4]
[366675167,1750407067478,-706.2,0.00025988,4]
[366675168,1750407067598,-706.2,0.00025988,4]
[366675169,1750407067610,-706.2,0.00025988,4]
[366675170,1750407067625,-706.2,0.00025988,4]
[366675171,1750407067635,-706.32832763,0.00025988,4]
[366675172,1750407067646,-188.71138321,0.00025988,4]
[366675173,1750407067657,-490.0,0.00025988,4]
[366675174,1750407067668,-761.31,0.00025988,4]
[366675175,1750407067678,-490.0,0.00025988,4]
[366675176,1750407067690,-161.58432282,0.00025988,4]
[366675177,1750407067701,-490.0,0.00025988,4]
[366675178,1750407067711,-490.0,0.00025988,4]
[366675179,1750407067720,-490.0,0.00025988,4]
[366675180,1750407067735,-490.0,0.00025988,4]
[366675181,1750407067745,-490.0,0.00025988,4]
[366675182,1750407067755,-518.69,0.00025988,4]
[366675183,1750407067765,-490.0,0.00025988,4]
[366675184,1750407067776,-525.27,0.00025988,4]
[366675185,1750407067791,-584.34,0.00025988,4]
[366675186,1750407067801,-490.0,0.00025988,4]
[366675187,1750407067812,-490.0,0.00025988,4]
[366675188,1750407067823,-551.73,0.00025988,4]
[366675189,1750407067833,-490.48,0.00025988,4]
[366675190,1750407067843,-490.0,0.00025988,4]
[366675191,1750407067853,-490.0,0.00025988,4]
[366675192,1750407067863,-490.0,0.00025988,4]
[366675193,1750407067873,-490.0,0.00025988,4]
[366675194,1750407067882,-490.0,0.00025988,4]
[366675195,1750407067892,-490.0,0.00025988,4]
[366675196,1750407067902,-501.42535426,0.00025988,4]
[366675197,1750407067912,-490.0,0.00025988,4]
[366675198,1750407067922,-2088.27,0.00025988,4]
[366675199,1750407067932,-2088.27,0.00025988,4]
[366675200,1750407067942,-2088.27,0.00025988,4]
[366675201,1750407067951,-2088.27,0.00025988,4]
[366675202,1750407067961,-2088.27,0.00025988,4]
[366675203,1750407067971,-2088.27,0.00025988,4]
[366675204,1750407067981,-2088.27,0.00025988,4]
[366675205,1750407067991,-2088.27,0.00025988,4]
[366675206,1750407068001,-2088.27,0.00025988,4]
[366675207,1750407068012,-2088.27,0.00025988,4]
[366675208,1750407068022,-2088.27,0.00025988,4]
[366675209,1750407068032,-2088.27,0.00025988,4]
[366675210,1750407068043,-2088.27,0.00025988,4]
[366675211,1750407068053,-2088.36312573,0.00025988,4]
[366675212,1750407068063,-1582.19,0.00025988,4]
[366675213,1750407068074,-1582.19,0.00025988,4]
[366675214,1750407068084,-1582.19,0.00025988,4]
[366675215,1750407068095,-1582.19,0.00025988,4]
[366675216,1750407068106,-1582.19,0.00025988,4]
[366675217,1750407068116,-1582.19,0.00025988,4]
[366675218,1750407068126,-1582.19,0.00025988,4]
[366675219,1750407068136,-1582.19,0.00025988,4]
[366675220,1750407068146,-1582.19,0.00025988,4]
[366675221,1750407068157,-1582.19,0.00025988,4]
[366675222,1750407068167,-1582.19,0.00025988,4]
[366675223,1750407068177,-1582.19,0.00025988,4]
[366675224,1750407068187,-1582.19,0.00025988,4]
[366675225,1750407068198,-1582.19,0.00025988,4]